bitfinex/quotes_SOLUSD_20250609
["timestamp","ask_amount","ask_price","bid_price","bid_amount"]
[1749447837846,6.66370425,150.07,150.06,15.28614629]
[1749447838450,6.66322914,150.08,150.06,15.28604552]
[1749447838633,6.66322914,150.08,150.07,15.28595088]
[1749447839033,6.66322914,150.08,150.07,12.79594332]
[1749447839453,6.66266906,150.09,150.07,15.28590775]
[1749447839653,6.66266906,150.09,150.08,15.28590745]
[1749447840025,6.66266906,150.09,150.08,15.28589977]
[1749447840446,6.66266906,150.09,150.08,12.79594332]
[1749447840936,6.66266906,150.09,150.08,15.28589457]
[1749447841860,6.66266906,150.09,150.08,15.28638769]
[1749447842241,6.66266906,150.09,150.08,12.79594332]
[1749447842448,6.66266906,150.09,150.08,15.28638769]
[1749447842839,6.80483063,150.09,150.08,2.49059556]
[1749447843562,6.80483063,150.09,150.08,2.49054519]
[1749447845053,6.80483063,150.09,150.08,2.49089221]
[1749447845259,6.80483063,150.09,150.08,2.49089225]
[1749447845669,6.80483063,150.09,150.07,12.79594332]
[1749447845852,25.45447949,150.09,150.08,2.49089255]
[1749447846041,25.45447949,150.09,150.07,12.79594332]
[1749447846437,25.45447949,150.09,150.08,2.49089255]
[1749447846668,25.45447949,150.09,150.08,2.49089225]
[1749447846957,25.45447949,150.09,150.08,2.490892]
[1749447847339,25.45447949,150.09,150.07,12.79594332]
[1749447847541,25.45447949,150.09,150.08,2.49045616]
[1749447848041,25.45447949,150.09,150.08,2.49046001]
[1749447848857,25.45447949,150.09,150.08,2.49045586]
[1749447849055,25.45447949,150.09,150.07,12.79594332]
[1749447849269,25.45447949,150.09,150.06,8.18827931]
[1749447849470,25.45447949,150.09,150.07,2.49055413]
[1749447849659,25.45447949,150.09,150.07,8.18827931]
[1749447849838,25.45447949,150.09,150.08,2.4905213]
[1749447850453,25.45447949,150.09,150.07,8.18827931]
[1749447851047,6.66266906,150.09,150.07,8.18827931]
[1749447851261,6.66266906,150.09,150.08,10.6786762]
[1749447851567,6.66266906,150.09,150.08,10.67867591]
[1749447852343,6.66266906,150.09,150.08,8.18827931]
[1749447852976,6.66232695,150.1,150.08,10.67807912]
[1749447853269,6.66232695,150.1,150.09,10.67807912]
[1749447853661,6.66232695,150.1,150.09,10.67818454]
[1749447854169,6.66178136,150.11,150.09,10.67816326]
[1749447854339,6.66178136,150.11,150.1,10.67816296]
[1749447854545,6.66178136,150.11,150.1,8.18827931]
[1749447854986,6.66178136,150.11,150.1,10.67809876]
[1749447855467,6.66133759,150.12,150.1,10.67809876]
[1749447855654,6.66133759,150.12,150.11,10.6780117]
[1749447855838,10.66,150.13,150.11,10.6780114]
[1749447855839,6.66108674,150.13,150.11,10.6780114]
[1749447856039,6.66108674,150.13,150.12,8.18827931]
[1749447856259,6.66108674,150.13,150.12,10.67797412]
[1749447856439,6.66108674,150.13,150.12,8.18827931]
[1749447856645,6.66108674,150.13,150.12,10.67789333]
[1749447857351,6.66108674,150.13,150.12,12.78475064]
[1749447857550,6.66108674,150.13,150.12,15.27317242]
[1749447858064,6.66108674,150.13,150.12,12.78475064]
[1749447858245,6.66108674,150.13,150.12,15.27308428]
[1749447859669,6.66108674,150.13,150.12,15.27312205]
[1749447859865,6.66108674,150.13,150.12,12.78475064]
[1749447860068,6.66108674,150.13,150.12,15.27317242]
[1749447860366,6.66108674,150.13,150.12,15.27312205]
[1749447861041,6.66108674,150.13,150.12,2.4884711]
[1749447861247,6.66108674,150.13,150.11,12.78475064]
[1749447861466,6.66108674,150.13,150.12,2.4884714]
[1749447861664,6.66108674,150.13,150.11,12.78475064]
[1749447861970,6.66108674,150.13,150.12,2.4884711]
[1749447862377,6.66108674,150.13,150.11,12.78475064]
[1749447862546,6.66108674,150.13,150.12,2.48790086]
[1749447862751,6.66108674,150.13,150.11,12.78475064]
[1749447863170,6.66108674,150.13,150.12,2.48790035]
[1749447863471,6.66108674,150.13,150.11,12.78475064]
[1749447863645,6.66108674,150.13,150.12,2.48784481]
[1749447864090,6.66108674,150.13,150.12,15.27259545]
[1749447864463,6.66108674,150.13,150.12,15.27229126]
[1749447864868,6.66108674,150.13,150.12,12.78475064]
[1749447865269,6.66108674,150.13,150.12,15.27231644]
[1749447866070,6.66108674,150.13,150.12,12.78475064]
[1749447866250,6.66108674,150.13,150.12,15.27152932]
[1749447866665,6.66108674,150.13,150.12,12.78475064]
[1749447866869,6.66108674,150.13,150.12,15.27157966]
[1749447867479,95.51994886,150.14,150.12,15.27157966]
[1749447867684,95.51994886,150.14,150.13,15.27141441]
[1749447867685,136.45994886,150.14,150.13,15.27141441]
[1749447867876,136.45994886,150.14,150.13,15.27092121]
[1749447868184,136.45994886,150.14,150.13,12.78475064]
[1749447869172,95.51994886,150.14,150.13,15.27096085]
[1749447869570,95.51994886,150.14,150.13,15.26969406]
[1749447870004,95.51994886,150.14,150.13,12.78475064]
[1749447870156,88.85932745,150.14,150.13,12.78475064]
[1749447870357,88.85932745,150.14,150.13,15.26958829]
[1749447871691,6.66006748,150.15,150.13,15.26958829]
[1749447871858,6.66006748,150.15,150.14,12.78475064]
[1749447872587,6.65956313,150.16,150.14,12.78475064]
[1749447873881,6.65956313,150.16,150.1,6.66208346]
[1749447873882,6.65956313,150.16,150.15,12.78475064]
[1749447874569,6.65911966,150.17,150.15,12.78475064]
[1749447875082,6.15911966,150.17,150.16,12.78475064]
[1749447875582,6.6582329,150.19,150.16,12.78475064]
[1749447875782,6.6582329,150.19,150.18,12.78475064]
[1749447876572,6.65778961,150.2,150.18,12.78475064]
[1749447877258,6.65778961,150.2,150.18,8.17584764]
[1749447882565,6.65778961,150.2,150.19,8.17584764]
[1749447885676,6.65778961,150.2,150.18,8.17584764]
[1749447897505,6.65778961,150.2,150.19,8.17584764]
[1749447898292,6.65778961,150.2,150.18,8.17584764]
[1749447899512,8.17584764,150.19,150.15,8.17584764]
[1749447901010,6.65867625,150.18,150.15,8.17584764]
[1749447902518,6.65867625,150.18,150.16,8.17584764]
[1749447903020,23.30490354,150.19,150.16,8.17584764]
[1749447903516,6.65734638,150.21,150.18,8.17584764]
[1749447903809,6.65734638,150.21,150.2,8.17584764]
[1749447904999,25.30655206,150.22,150.19,8.17584764]
[1749447905228,25.30655206,150.22,150.2,8.17584764]
[1749447905526,25.30655206,150.22,150.19,8.17584764]
[1749447906024,41.94881008,150.22,150.19,8.17584764]
[1749447907622,50.12465772,150.22,150.18,8.17584764]
[1749447908510,8.17584764,150.2,150.16,8.17584764]
[1749447908817,41.94881008,150.22,150.12,33.8221]
[1749447908818,8.17584764,150.19,150.15,8.17584764]
[1749447909410,18.64964886,150.2,150.17,8.17584764]
[1749447909934,8.17584764,150.2,150.12,34.2777822]
[1749447910237,8.17584764,150.2,150.16,8.17584764]
[1749447910412,6.6582329,150.19,150.17,8.17584764]
[1749447911204,6.6582329,150.19,150.17,12.77602645]
[1749447911404,6.65778961,150.2,150.17,12.77602645]
[1749447911736,19.43381606,150.2,150.16,12.77602645]
[1749447911904,36.07829009,150.2,150.16,12.77602645]
[1749447916214,16.64447403,150.2,150.16,12.77602645]
[1749447917345,16.64447403,150.2,150.12,34.27781259]
[1749447917346,16.64447403,150.2,150.17,12.77602645]
[1749447917632,18.64964886,150.2,150.17,12.77602645]
[1749447918229,6.6582329,150.19,150.17,12.77602645]
[1749447918625,6.65734638,150.21,150.18,12.77602645]
[1749447918806,6.65734638,150.21,150.19,12.77602645]
[1749447920107,6.65734638,150.21,150.14,32.66005663]
[1749447920108,6.65734638,150.21,150.2,12.77602645]
[1749447920627,6.65704444,150.22,150.2,12.77602645]
[1749447920817,6.65704444,150.22,150.21,12.77602645]
[1749447921721,6.65646009,150.23,150.2,12.77602645]
[1749447921910,4.93599356,150.22,150.18,12.77602645]
[1749447922117,12.77602645,150.22,150.18,12.77602645]
[1749447922911,6.65734638,150.21,150.18,12.77602645]
[1749447923314,6.65734638,150.21,150.19,12.77602645]
[1749447923522,6.65646009,150.23,150.2,12.77602645]
[1749447930438,12.77602645,150.22,150.18,12.77602645]
[1749447931338,8.17489108,150.22,150.18,8.17489108]
[1749447931731,6.65734638,150.21,150.18,8.17489108]
[1749447933543,31.4725014,150.23,150.19,8.17489108]
[1749447933748,4.93420394,150.22,150.19,8.17489108]
[1749447934044,31.4725014,150.23,150.19,8.17489108]
[1749447934255,4.93413646,150.22,150.19,8.17489108]
[1749447934553,31.4725014,150.23,150.19,8.17489108]
[1749447934853,6.65734638,150.21,150.19,8.17489108]
[1749447936052,6.6569032,150.22,150.19,8.17489108]
[1749447940149,6.6569032,150.22,150.2,8.17489108]
[1749447941347,6.65646009,150.23,150.2,8.17489108]
[1749447950051,13.11568387,150.22,150.18,8.17489108]
[1749447950253,23.29761032,150.23,150.17,8.17489108]
[1749447950448,8.17489108,150.2,150.16,8.17489108]
[1749447950649,6.6582329,150.19,150.16,8.17489108]
[1749447954241,6.6582329,150.19,150.13,36.6]
[1749447954443,6.6582329,150.19,150.16,8.17489108]
[1749447965273,72.31870624,150.19,150.13,10.6]
[1749447965479,8.17489108,150.16,150.12,8.17489108]
[1749447965776,8.17489108,150.16,150.11,8.17489108]
[1749447966162,24.69624886,150.18,150.09,36.6]
[1749447966163,8.17489108,150.17,150.13,8.17489108]
[1749447967279,72.31870624,150.19,150.15,8.17489108]
[1749447967670,13.11063194,150.18,150.14,8.17489108]
[1749447967982,64.14381516,150.19,150.14,8.17489108]
[1749447967983,72.31870624,150.19,150.14,8.17489108]
[1749447969374,13.10869575,150.18,150.14,8.17489108]
[1749447969567,8.17489108,150.18,150.14,8.17489108]
[1749447970278,47.4982329,150.19,150.17,8.17489108]
[1749447970773,6.6582329,150.19,150.18,2.48897507]
[1749447971682,6.65778961,150.2,150.18,2.48910836]
[1749447971885,6.65778961,150.2,150.19,2.48910836]
[1749447972071,6.65778961,150.2,150.19,2.48910455]
[1749447972272,6.65778961,150.2,150.16,8.17489108]
[1749447972576,6.65778961,150.2,150.18,8.17489108]
[1749447972978,6.65778961,150.2,150.19,2.48912478]
[1749447973172,6.65778961,150.2,150.19,2.48913521]
[1749447973377,6.65778961,150.2,150.18,8.17489108]
[1749447973683,6.65778961,150.2,150.19,2.48914855]
[1749447973872,6.65778961,150.2,150.19,2.48914831]
[1749447974777,6.65778961,150.2,150.17,8.17489108]
[1749447975107,6.65778961,150.2,150.18,2.48958082]
[1749447975285,6.65778961,150.2,150.17,8.17489108]
[1749447975585,6.65778961,150.2,150.18,2.48963445]
[1749447975790,6.65778961,150.2,150.19,2.48963445]
[1749447976287,6.65778961,150.2,150.19,2.48960131]
[1749447976487,6.65778961,150.2,150.19,2.48959394]
[1749447976686,6.65778961,150.2,150.17,8.17489108]
[1749447982889,6.65778961,150.2,150.18,8.17489108]
[1749447983391,47.4774916,150.21,150.19,8.17489108]
[1749447986496,47.4774916,150.21,150.13,1.6638]
[1749447986706,8.17489108,150.19,150.12,26.0]
[1749447986874,8.17489108,150.18,150.14,8.17489108]
[1749447987211,8.17489108,150.19,150.15,8.17489108]
[1749447987397,26.82453994,150.2,150.15,8.17489108]
[1749447988107,6.6582329,150.19,150.16,8.17489108]
[1749447988402,6.6582329,150.19,150.11,43.26159114]
[1749447988697,6.6582329,150.19,150.16,8.17489108]
[1749447989801,23.30381516,150.19,150.16,8.17489108]
[1749447994494,31.47870624,150.19,150.15,8.17489108]
[1749447994799,4.94143009,150.18,150.15,8.17489108]
[1749447995002,23.30381516,150.19,150.15,8.17489108]
[1749447995811,23.30381516,150.19,150.16,8.17489108]
[1749447998399,6.6582329,150.19,150.17,8.17489108]
[1749448006022,6.6582329,150.19,150.16,8.17489108]
[1749448010532,6.65795518,150.2,150.17,8.17489108]
[1749448010707,6.65795518,150.2,150.18,8.17489108]
[1749448011715,6.65734638,150.21,150.18,8.17489108]
[1749448012312,6.65734638,150.21,150.19,8.17489108]
[1749448012827,47.45709359,150.22,150.2,8.17489108]
[1749448013017,47.45709359,150.22,150.19,8.17489108]
[1749448013710,4.94087246,150.21,150.19,8.17489108]
[1749448013893,47.45709359,150.22,150.19,8.17489108]
[1749448014098,6.65778961,150.2,150.19,8.17489108]
[1749448015401,6.65734638,150.21,150.19,8.17489108]
[1749448018719,47.4569032,150.22,150.19,8.17489108]
[1749448020330,55.63179428,150.22,150.19,8.17489108]
[1749448020526,18.64964886,150.21,150.14,27.6238]
[1749448020724,13.11702477,150.2,150.16,8.17489108]
[1749448020928,8.17489108,150.2,150.16,8.17489108]
[1749448021115,26.82453994,150.21,150.17,8.17489108]
[1749448022233,4.94220645,150.2,150.17,8.17489108]
[1749448022529,26.82453994,150.21,150.17,8.17489108]
[1749448022730,6.6582329,150.19,150.17,8.17489108]
[1749448023317,6.65796353,150.2,150.17,8.17489108]
[1749448023514,6.65796353,150.2,150.18,8.17489108]
[1749448023826,6.65796353,150.2,150.19,8.17489108]
[1749448024419,6.65753769,150.21,150.19,8.17489108]
[1749448024930,6.65753769,150.21,150.18,8.17489108]
[1749448028931,6.65753769,150.21,150.19,8.17489108]
[1749448031232,6.6569032,150.22,150.19,8.17489108]
[1749448031537,6.6569032,150.22,150.2,8.17489108]
[1749448031732,18.64964886,150.25,150.21,8.17489108]
[1749448031936,59.42964886,150.25,150.22,8.17489108]
[1749448032309,6.65557404,150.25,150.22,8.17489108]
[1749448032509,6.65557404,150.25,150.23,8.17489108]
[1749448034431,6.65557404,150.25,150.22,8.17489108]
[1749448036442,6.65557404,150.25,150.23,8.17489108]
[1749448038341,6.65529016,150.26,150.23,8.17489108]
[1749448038548,8.17489108,150.25,150.19,26.0]
[1749448038729,8.17489108,150.25,150.2,8.17489108]
[1749448039848,8.17489108,150.24,150.2,8.17489108]
[1749448040640,8.17489108,150.22,150.18,8.17489108]
[1749448041043,8.17489108,150.22,150.16,10.58]
[1749448041224,8.17489108,150.2,150.16,18.75489108]
[1749448043120,14.83297155,150.2,150.16,18.75489108]
[1749448043345,19.434917,150.2,150.16,23.35683653]
[1749448043527,19.434917,150.2,150.16,49.35683653]
[1749448044226,19.434917,150.2,150.16,23.35683653]
[1749448044764,19.434917,150.2,150.14,14.44243653]
[1749448044765,12.77683653,150.18,150.14,14.44243653]
[1749448044924,6.65808047,150.2,150.13,12.77683653]
[1749448045123,57.40339242,150.21,150.14,12.77683653]
[1749448045124,19.43584766,150.18,150.14,12.77683653]
[1749448045750,19.43584766,150.18,150.13,12.77683653]
[1749448047218,19.43584766,150.18,150.14,12.77683653]
[1749448049653,6.65901113,150.18,150.15,12.77683653]
[1749448054642,19.43584766,150.18,150.14,12.77683653]
[1749448055319,6.65901113,150.18,150.15,12.77683653]
[1749448055518,6.65901113,150.18,150.12,17.22119262]
[1749448055519,6.65901113,150.18,150.16,12.77683653]
[1749448057453,19.43506943,150.19,150.15,12.77683653]
[1749448057618,19.43506943,150.19,150.14,12.77683653]
[1749448058631,12.77683653,150.18,150.13,12.77683653]
[1749448059149,12.77683653,150.18,150.14,12.77683653]
[1749448059648,6.65911966,150.17,150.14,12.77683653]
[1749448059850,6.65911966,150.17,150.15,12.77683653]
[1749448061963,6.65867625,150.18,150.15,12.77683653]
[1749448063252,31.48249285,150.19,150.15,8.17867769]
[1749448063549,31.48249285,150.19,150.12,17.2212695]
[1749448063751,23.30381516,150.19,150.15,8.17867769]
[1749448063954,31.48249285,150.19,150.15,8.17867769]
[1749448065655,23.30381516,150.19,150.15,8.17867769]
[1749448065847,31.48249285,150.19,150.15,8.17867769]
[1749448066340,31.48249285,150.19,150.16,2.48574216]
[1749448066647,31.48249285,150.19,150.17,2.48574216]
[1749448066836,31.48249285,150.19,150.15,8.17867769]
[1749448067032,31.48249285,150.19,150.16,2.48575284]
[1749448067240,31.48249285,150.19,150.17,2.48575254]
[1749448067439,31.48249285,150.19,150.15,8.17867769]
[1749448067659,31.48249285,150.19,150.16,2.48585392]
[1749448067855,31.48249285,150.19,150.15,8.17867769]
[1749448068054,18.64964886,150.18,150.15,8.17867769]
[1749448068232,26.82832655,150.18,150.16,2.48543769]
[1749448068444,26.82832655,150.18,150.14,8.17867769]
[1749448068730,26.82832655,150.18,150.15,2.48552492]
[1749448068935,26.82832655,150.18,150.16,2.48552462]
[1749448069135,8.17867769,150.17,150.09,15.9529636]
[1749448069328,8.17867769,150.15,150.11,8.17867769]
[1749448069542,8.17867769,150.15,150.12,2.4858039]
[1749448069746,48.93867769,150.16,150.13,2.4858039]
[1749448069929,48.93867769,150.16,150.14,2.4858039]
[1749448070143,48.93867769,150.16,150.11,8.17867769]
[1749448070344,6.66000666,150.15,150.12,2.48413403]
[1749448070558,6.66000666,150.15,150.13,2.48412973]
[1749448070757,6.66000666,150.15,150.14,2.48412943]
[1749448070956,6.66000666,150.15,150.11,8.17867769]
[1749448071135,6.66000666,150.15,150.12,10.66282028]
[1749448071335,6.66000666,150.15,150.13,2.48412973]
[1749448071538,6.66000666,150.15,150.14,2.48412973]
[1749448071757,47.41972455,150.16,150.14,2.48412914]
[1749448072054,47.41972455,150.16,150.15,10.66265855]
[1749448072256,47.41972455,150.16,150.15,2.48398086]
[1749448072639,40.76,150.16,150.15,2.48372451]
[1749448072840,40.76,150.16,150.15,2.48371932]
[1749448073055,10.56,150.17,150.15,8.17867769]
[1749448073259,51.32,150.17,150.16,15.26155335]
[1749448074155,10.56,150.17,150.16,15.26155335]
[1749448074860,6.65884272,150.18,150.16,15.26128191]
[1749448075055,6.65884272,150.18,150.17,2.48334716]
[1749448075766,6.65884272,150.18,150.17,2.48333098]
[1749448076758,6.65884272,150.18,150.17,2.48333618]
[1749448077767,6.65884272,150.18,150.16,12.77793475]
[1749448078168,6.65884272,150.18,150.17,2.48440524]
[1749448078468,6.65884272,150.18,150.17,2.48440493]
[1749448079559,6.65884272,150.18,150.16,2.48701281]
[1749448079744,6.65884272,150.18,150.17,2.48701311]
[1749448079944,6.65884272,150.18,150.17,2.48701281]
[1749448080182,6.65884272,150.18,150.17,2.48702841]
[1749448080363,6.65884272,150.18,150.15,12.77793475]
[1749448081056,6.65884272,150.18,150.12,6.66116888]
[1749448081266,19.43677747,150.18,150.14,12.77793475]
[1749448083046,19.43677747,150.18,150.13,12.77793475]
[1749448083747,31.42758361,150.16,150.1,26.0]
[1749448083948,12.77793475,150.15,150.11,12.77793475]
[1749448084252,53.53793475,150.15,150.11,12.77793475]
[1749448084653,40.76,150.15,150.12,12.77793475]
[1749448084953,6.66045024,150.14,150.12,12.77793475]
[1749448085151,6.66045024,150.14,150.08,12.09410029]
[1749448085374,6.66045024,150.14,150.12,12.77793475]
[1749448085746,40.76,150.15,150.13,15.26965185]
[1749448085965,40.76,150.15,150.14,15.26965185]
[1749448086249,47.42000666,150.15,150.14,2.4917171]
[1749448086649,47.42000666,150.15,150.14,2.49323236]
[1749448086848,47.42000666,150.15,150.13,12.77793475]
[1749448087071,47.42000666,150.15,150.08,28.22470275]
[1749448087251,60.19794141,150.15,150.11,12.77793475]
[1749448087456,60.19794141,150.15,150.12,2.49328443]
[1749448087778,60.19794141,150.15,150.13,2.49328443]
[1749448087958,60.19794141,150.15,150.14,2.49328443]
[1749448088160,60.19794141,150.15,150.14,2.49330743]
[1749448088567,60.19794141,150.15,150.11,12.77793475]
[1749448088568,47.42000666,150.15,150.12,12.77793475]
[1749448089060,47.42000666,150.15,150.13,15.2712606]
[1749448089263,47.42000666,150.15,150.14,2.49322473]
[1749448090372,47.42000666,150.15,150.14,2.49264777]
[1749448090575,47.42000666,150.15,150.13,12.77793475]
[1749448090885,47.42000666,150.15,150.14,2.49262421]
[1749448091874,47.42000666,150.15,150.14,2.49256092]
[1749448092381,47.42000666,150.15,150.14,2.49259872]
[1749448093178,47.42000666,150.15,150.14,2.49267431]
[1749448093562,47.42000666,150.15,150.13,12.77793475]
[1749448093763,47.42000666,150.15,150.14,2.4925135]
[1749448093967,47.42000666,150.15,150.13,12.77793475]
[1749448094173,47.42000666,150.15,150.14,2.49241271]
[1749448094473,47.42000666,150.15,150.14,2.4924628]
[1749448095177,40.76,150.16,150.14,15.27039755]
[1749448095473,40.76,150.16,150.15,2.49188352]
[1749448095675,40.76,150.16,150.15,2.49188322]
[1749448096178,40.76,150.16,150.15,15.26983057]
[1749448096774,47.41956313,150.16,150.15,2.49189582]
[1749448097168,47.41956313,150.16,150.15,2.49201151]
[1749448097588,47.41956313,150.16,150.13,12.77793475]
[1749448097754,47.41956313,150.16,150.14,2.4920069]
[1749448097959,47.41956313,150.16,150.15,2.49199401]
[1749448098969,6.65956313,150.16,150.15,2.49226531]
[1749448099175,6.65956313,150.16,150.15,2.49224012]
[1749448099587,6.65956313,150.16,150.13,12.77793475]
[1749448099872,6.65956313,150.16,150.14,2.49227851]
[1749448100086,6.65956313,150.16,150.15,2.49227851]
[1749448100600,6.65956313,150.16,150.15,2.49238688]
[1749448100766,6.65956313,150.16,150.15,2.49243727]
[1749448101075,19.43749788,150.16,150.12,12.77793475]
[1749448101467,19.43749788,150.16,150.13,2.49243817]
[1749448101670,60.17749788,150.16,150.14,2.49243817]
[1749448101870,31.42758361,150.15,150.1,12.77793475]
[1749448102081,31.42758361,150.15,150.11,2.49264394]
[1749448102267,31.42758361,150.15,150.12,2.49264394]
[1749448102474,31.42758361,150.15,150.13,2.49286233]
[1749448102671,38.08759027,150.15,150.14,2.49286233]
[1749448104070,38.08759027,150.15,150.1,12.77793475]
[1749448104390,12.77793475,150.14,150.11,2.49221071]
[1749448104588,6.66089389,150.13,150.1,12.77793475]
[1749448104795,6.66089389,150.13,150.11,2.49221131]
[1749448104996,6.66089389,150.13,150.12,2.49221131]
[1749448105795,6.66089389,150.13,150.1,12.77793475]
[1749448106095,6.66089389,150.13,150.11,2.49170632]
[1749448106391,6.66089389,150.13,150.12,2.49170602]
[1749448107377,6.66045024,150.14,150.12,2.49171832]
[1749448107576,6.66045024,150.14,150.13,2.49171802]
[1749448107775,6.66045024,150.14,150.13,2.49171772]
[1749448107993,6.66045024,150.14,150.11,12.77793475]
[1749448108294,6.66045024,150.14,150.12,2.49171832]
[1749448108490,6.66045024,150.14,150.13,2.49171832]
[1749448109072,6.66045024,150.14,150.13,2.49142659]
[1749448109273,6.66045024,150.14,150.11,12.77793475]
[1749448109867,6.66045024,150.14,150.12,2.49143208]
[1749448110073,6.66045024,150.14,150.13,2.49143178]
[1749448110294,6.66045024,150.14,150.11,12.77793475]
[1749448110604,6.66045024,150.14,150.12,2.49141948]
[1749448110798,6.66045024,150.14,150.13,2.49141918]
[1749448110974,6.66045024,150.14,150.13,2.49141889]
[1749448111374,6.66045024,150.14,150.11,12.77793475]
[1749448111594,6.66045024,150.14,150.12,2.49141948]
[1749448111776,6.66045024,150.14,150.13,2.49143178]
[1749448112505,6.65956313,150.16,150.13,15.26936653]
[1749448112677,40.74,150.15,150.14,15.26911193]
[1749448112877,6.65956313,150.16,150.14,2.49117718]
[1749448113076,47.39956313,150.16,150.15,2.49117496]
[1749448113306,47.39956313,150.16,150.1,6.66191791]
[1749448113307,6.65956313,150.16,150.14,12.77793475]
[1749448113492,47.39956313,150.16,150.15,2.49117511]
[1749448113687,6.65956313,150.16,150.15,15.26910986]
[1749448114085,40.74,150.18,150.15,15.26910986]
[1749448114286,40.74,150.18,150.16,2.49081152]
[1749448114482,67.96758361,150.2,150.16,2.49081152]
[1749448114483,59.38964886,150.19,150.17,2.49081152]
[1749448114775,43.19778961,150.2,150.18,2.49074769]
[1749448115008,43.19778961,150.2,150.17,12.77793475]
[1749448115009,40.74,150.19,150.17,12.77793475]
[1749448115187,40.74,150.19,150.18,2.49054616]
[1749448115683,6.6582329,150.19,150.18,2.49054616]
[1749448115877,6.6582329,150.19,150.18,15.26848091]
[1749448116077,6.6582329,150.19,150.18,15.26793227]
[1749448116699,6.6582329,150.19,150.18,15.26785091]
[1749448116878,6.6582329,150.19,150.18,15.26780058]
[1749448117479,17.19796,150.2,150.18,2.48986583]
[1749448117676,17.19796,150.2,150.19,2.48986583]
[1749448117906,17.19796,150.2,150.19,2.48955415]
[1749448118091,17.19796,150.2,150.19,2.48960447]
[1749448118494,17.19796,150.2,150.17,12.77793475]
[1749448118680,17.19796,150.2,150.18,2.48955415]
[1749448118886,17.19796,150.2,150.19,2.48955415]
[1749448119710,17.19796,150.2,150.19,2.48846057]
[1749448119891,17.19796,150.2,150.19,2.48841027]
[1749448120084,17.19796,150.2,150.18,2.48851087]
[1749448120284,31.42758361,150.19,150.15,12.77793475]
[1749448120592,31.42758361,150.19,150.16,2.48870521]
[1749448120779,6.65867625,150.18,150.17,2.48870521]
[1749448121193,6.65867625,150.18,150.15,12.77793475]
[1749448121394,6.65867625,150.18,150.16,12.77793475]
[1749448122297,6.658348,150.19,150.16,12.77793475]
[1749448125298,6.658348,150.19,150.17,2.48855596]
[1749448125505,6.658348,150.19,150.16,12.77793475]
[1749448125506,6.658348,150.19,150.18,2.48853051]
[1749448125689,6.658348,150.19,150.18,2.48860567]
[1749448126893,6.658348,150.19,150.16,12.77793475]
[1749448127096,6.658348,150.19,150.17,2.48839543]
[1749448127304,6.658348,150.19,150.18,2.48849574]
[1749448127504,6.658348,150.19,150.18,2.48844543]
[1749448128490,6.658348,150.19,150.16,12.77793475]
[1749448128696,6.658348,150.19,150.17,2.48804998]
[1749448129012,6.658348,150.19,150.16,12.77793475]
[1749448129204,6.658348,150.19,150.17,2.48804968]
[1749448129408,6.658348,150.19,150.18,2.48804968]
[1749448130214,6.658348,150.19,150.18,2.48802596]
[1749448130594,6.658348,150.19,150.16,12.77793475]
[1749448131110,6.658348,150.19,150.17,2.48802136]
[1749448131301,6.658348,150.19,150.18,2.48802136]
[1749448131498,17.19781326,150.2,150.18,2.48747271]
[1749448131702,17.19781326,150.2,150.19,2.48747271]
[1749448131890,6.65781326,150.2,150.18,12.77793475]
[1749448132097,6.65781326,150.2,150.19,2.48736029]
[1749448132505,6.65781326,150.2,150.18,12.77793475]
[1749448133411,6.65734638,150.21,150.18,12.77793475]
[1749448134092,6.65646009,150.23,150.2,12.77793475]
[1749448134414,6.65646009,150.23,150.21,12.77793475]
[1749448135894,19.43439484,150.23,150.16,6.65939532]
[1749448136095,12.77793475,150.21,150.16,12.77793475]
[1749448137310,6.65778961,150.2,150.16,12.77793475]
[1749448138013,6.65778961,150.2,150.18,12.77793475]
[1749448138316,6.65751084,150.21,150.19,12.77793475]
[1749448139304,6.6569032,150.22,150.19,12.77793475]
[1749448139908,6.6569032,150.22,150.18,12.77793475]
[1749448140109,6.6569032,150.22,150.14,6.66045024]
[1749448140110,6.6569032,150.22,150.2,12.77793475]
[1749448141118,10.52,150.24,150.21,12.77793475]
[1749448141336,6.65610389,150.24,150.22,12.77793475]
[1749448142008,6.65588261,150.25,150.22,12.77793475]
[1749448143427,6.65524576,150.26,150.23,12.77793475]
[1749448143641,12.77793475,150.25,150.19,26.0]
[1749448143804,12.77793475,150.24,150.19,12.77793475]
[1749448144122,12.77793475,150.23,150.19,12.77793475]
[1749448145302,12.77793475,150.24,150.19,12.77793475]
[1749448145717,12.77793475,150.24,150.2,12.77793475]
[1749448146829,19.43431877,150.24,150.2,12.77793475]
[1749448147028,19.43431877,150.24,150.18,34.21517085]
[1749448147029,6.65638402,150.24,150.21,12.77793475]
[1749448147236,40.7,150.27,150.22,12.77793475]
[1749448147418,40.7,150.27,150.23,12.77793475]
[1749448147419,53.47793475,150.27,150.23,12.77793475]
[1749448148314,6.65468822,150.27,150.23,12.77793475]
[1749448149424,17.17442598,150.28,150.24,12.77793475]
[1749448149824,29.95236073,150.28,150.24,12.77793475]
[1749448153945,12.77793475,150.27,150.21,32.65725215]
[1749448154254,12.77793475,150.27,150.23,12.77793475]
[1749448155143,19.43294228,150.27,150.23,12.77793475]